[Event "Gibraltar Challengers B 2019"]
[Site "Caleta"]
[Date "2019.01.29"]
[Round "4"]
[White "Pinho, Paulo"]
[Black "Bengherabi, Khalil"]
[Result "1-0"]
[ECO "E08"]
[WhiteElo "2205"]
[BlackElo "2150"]
[Annotator "RC"]
[PlyCount "41"]
[EventDate "2019.01.18"]
[EventType "swiss"]
[EventCountry "GGB"]
[SourceTitle "playchess.com"]
[Source "ChessBase"]
[SourceQuality "1"]
[TimeControl "6600+10"]

1. d4 {[%emt 0:01:42]} Nf6 {[%emt 0:00:00]} 2. c4 {[%emt 0:00:53]} e6 {[%emt 0:00:00]} 3. Nf3 {[%emt 0:00:13]} d5 {[%emt 0:00:09]} 4. g3 {[%emt 0:00:07]} Be7 {[%emt 0:00:33]} 5. Bg2 {[%emt 0:02:02]} O-O {[%emt 0:00:07]} 6. O-O {[%emt 0:00:06]} Nbd7 {[%emt 0:00:11]} 7. b3 {[%emt 0:01:33]} c6 {[%emt 0:00:07]} 8. Nc3 {[%emt 0:00:13]} b6 {[%emt 0:00:06]} 9. Bb2 {[%emt 0:00:20]} Bb7 {[%emt 0:02:53]} 10. Qc2 {[%emt 0:04:27]} c5 {[%emt 0:03:39]} 11. cxd5 {[%emt 0:02:38]} Nxd5 {[%emt 0:00:35]} 12. Nxd5 {[%emt 0:09:45]} Bxd5 {[%emt 0:00:21]} 13. e4 {[%emt 0:06:10]} Bb7 {[%emt 0:00:11]} 14. Rfd1 {[%emt 0:01:19]} cxd4 {[%emt 0:12:04]} 15. Nxd4 {[%emt 0:06:00]} Bc5 {[%emt 0:06:07]} 16. b4 {[%emt 0:04:14]} Bxd4 {[%emt 0:16:13]} 17. Rxd4 {[%emt 0:00:29]} Rc8 {[%emt 0:00:16]} 18. Qd2 {[%emt 0:02:00]} Rc7 {[%emt 0:00:21]} 19. Rd1 {[%emt 0:00:21]} Bc6 {[%emt 0:09:01]} 20. Qc3 {[%emt 0:19:11]} Bd5 {[%emt 0:00:18]} 21. Rc4 {[%emt 0:00:18]} 1-0

[Event "Gibraltar Challengers B 2019"]
[Site "Caleta"]
[Date "2019.01.29"]
[Round "4"]
[White "Pavlov, Egor"]
[Black "Diaz Mino, Pablo"]
[Result "0-1"]
[ECO "E90"]
[WhiteElo "2187"]
[BlackElo "2085"]
[Annotator "RC"]
[PlyCount "176"]
[EventDate "2019.01.18"]
[EventType "swiss"]
[EventCountry "GGB"]
[SourceTitle "playchess.com"]
[Source "ChessBase"]
[SourceQuality "1"]
[TimeControl "6600+10"]

1. Nf3 {[%emt 0:00:00]} Nf6 {[%emt 0:00:04]} 2. c4 {[%emt 0:00:14]} g6 {[%emt 0:00:18]} 3. Nc3 {[%emt 0:00:06]} Bg7 {[%emt 0:00:15]} 4. e4 {[%emt 0:00:41]} d6 {[%emt 0:00:16]} 5. d4 {[%emt 0:00:07]} O-O {[%emt 0:00:12]} 6. h3 {[%emt 0:00:27]} e5 {[%emt 0:01:17]} 7. d5 {[%emt 0:00:37]} a5 {[%emt 0:00:56]} 8. g4 {[%emt 0:02:47]} Na6 {[%emt 0:01:49]} 9. Be3 {[%emt 0:02:23]} Nc5 {[%emt 0:03:17]} 10. Qc2 {[%emt 0:00:39]} b6 {[%emt 0:01:17]} 11. O-O-O {[%emt 0:00:57]} Bd7 {[%emt 0:02:55]} 12. Be2 {[%emt 0:02:29]} Qe7 {[%emt 0:09:15]} 13. Nd2 {[%emt 0:08:01]} c6 {[%emt 0:03:51]} 14. g5 {[%emt 0:02:21]} Ne8 {[%emt 0:01:02]} 15. h4 {[%emt 0:01:20]} Nc7 {[%emt 0:04:02]} 16. Nb3 {[%emt 0:13:48]} cxd5 {[%emt 0:00:58]} 17. Nxc5 {[%emt 0:01:46]} bxc5 {[%emt 0:00:39]} 18. Nxd5 {[%emt 0:01:17]} Nxd5 {[%emt 0:00:53]} 19. Rxd5 {[%emt 0:00:05]} Be6 {[%emt 0:01:56]} 20. Rd3 {[%emt 0:08:31]} Rfb8 {[%emt 0:05:58]} 21. Rb3 {[%emt 0:02:44]} Rb4 {[%emt 0:01:51]} 22. Bd2 {[%emt 0:03:26]} Rxb3 {[%emt 0:00:17]} 23. Qxb3 {[%emt 0:01:09]} Qc7 {[%emt 0:03:03]} 24. f3 {[%emt 0:10:13]} Bd7 {[%emt 0:04:19]} 25. Rd1 {[%emt 0:01:17]} Bc6 {[%emt 0:01:18]} 26. Be3 {[%emt 0:01:34]} Rb8 {[%emt 0:03:15]} 27. Qd3 {[%emt 0:00:41]} Bf8 {[%emt 0:00:18]} 28. h5 {[%emt 0:05:31]} Qb7 {[%emt 0:00:15]} 29. Qd2 {[%emt 0:00:50]} Qb4 {[%emt 0:05:49]} 30. hxg6 {[%emt 0:04:59]} hxg6 {[%emt 0:02:08]} 31. Bd3 {[%emt 0:01:51]} Qxd2+ {[%emt 0:01:09]} 32. Rxd2 {[%emt 0:02:25]} Be7 {[%emt 0:05:02]} 33. Be2 {[%emt 0:03:07]} Kg7 {[%emt 0:01:32]} 34. Rd3 {[%emt 0:05:35]} a4 {[%emt 0:04:38]} 35. Ra3 {[%emt 0:05:43]} Rh8 {[%emt 0:02:29]} 36. b3 {[%emt 0:02:06]} Rh2 {[%emt 0:00:58]} 37. Kd2 {[%emt 0:02:06]} Bd8 {[%emt 0:00:15]} 38. bxa4 {[%emt 0:01:56]} Ba5+ {[%emt 0:00:16]} 39. Kd3 {[%emt 0:00:42]} Bb4 {[%emt 0:03:22]} 40. Rb3 {[%emt 0:00:02]} Bxa4 {[%emt 0:00:15]} 41. Rb2 {[%emt 0:00:57]} Bd1 {[%emt 0:08:32]} 42. f4 {[%emt 0:04:42]} exf4 {[%emt 0:00:39]} 43. Bxf4 {[%emt 0:00:01]} Rh3+ {[%emt 0:00:22]} 44. Be3 {[%emt 0:00:04]} Ba4 {[%emt 0:02:00]} 45. Bf1 {[%emt 0:02:54]} Rh1 {[%emt 0:01:42]} 46. Rf2 {[%emt 0:00:06]} Be1 {[%emt 0:01:34]} 47. Rf6 {[%emt 0:00:40]} Rh2 {[%emt 0:00:41]} 48. Be2 {[%emt 0:00:17]} Bg3 {[%emt 0:01:28]} 49. Bf4 {[%emt 0:00:48]} Bxf4 {[%emt 0:02:27]} 50. Rxf4 {[%emt 0:00:01]} Rg2 {[%emt 0:00:40]} 51. Rf6 {[%emt 0:00:47]} Rxg5 {[%emt 0:00:43]} 52. Rxd6 {[%emt 0:00:03]} Rg3+ {[%emt 0:00:08]} 53. Kd2 {[%emt 0:00:01]} Ra3 {[%emt 0:00:13]} 54. Rd5 {[%emt 0:00:37]} Rxa2+ {[%emt 0:02:05]} 55. Ke3 {[%emt 0:00:01]} Ra3+ {[%emt 0:00:12]} 56. Kf4 {[%emt 0:00:32]} f6 {[%emt 0:02:28]} 57. Bf3 {[%emt 0:00:09]} g5+ {[%emt 0:02:54]} 58. Kg4 {[%emt 0:00:14]} Rc3 {[%emt 0:00:31]} 59. Rxc5 {[%emt 0:00:14]} Bd7+ {[%emt 0:00:17]} 60. Kg3 {[%emt 0:00:00]} g4 {[%emt 0:00:08]} 61. Rc7 {[%emt 0:00:08]} Rxf3+ {[%emt 0:00:06]} 62. Kg2 {[%emt 0:00:01]} Rd3 {[%emt 0:00:19]} 63. c5 {[%emt 0:00:01]} Kg6 {[%emt 0:01:34]} 64. c6 {[%emt 0:00:01]} Be6 {[%emt 0:00:32]} 65. Re7 {[%emt 0:00:31]} Bc8 {[%emt 0:00:27]} 66. Re8 {[%emt 0:00:13]} Ba6 {[%emt 0:00:14]} 67. Ra8 {[%emt 0:00:17]} Re3 {[%emt 0:01:23]} 68. Rxa6 {[%emt 0:00:05]} Rxe4 {[%emt 0:00:11]} 69. c7 {[%emt 0:00:10]} Rc4 {[%emt 0:00:02]} 70. Ra4 {[%emt 0:00:05]} Rc2+ {[%emt 0:00:09]} 71. Kg3 {[%emt 0:00:10]} f5 {[%emt 0:00:13]} 72. Kf4 {[%emt 0:00:17]} Rxc7 {[%emt 0:01:30]} 73. Ra6+ Kh5 {[%emt 0:00:00]} 74. Kxf5 {[%emt 0:00:02]} Rf7+ {[%emt 0:00:01]} 75. Ke4 {[%emt 0:00:12]} Kh4 {[%emt 0:00:05]} 76. Rh6+ {[%emt 0:00:28]} Kg3 {[%emt 0:00:02]} 77. Ke3 {[%emt 0:00:02]} Re7+ {[%emt 0:00:02]} 78. Kd2 {[%emt 0:00:00]} Kf2 {[%emt 0:00:04]} 79. Rf6+ {[%emt 0:00:07]} Kg2 {[%emt 0:00:02]} 80. Rg6 {[%emt 0:00:18]} g3 {[%emt 0:00:01]} 81. Rg8 {[%emt 0:00:03]} Kf2 {[%emt 0:00:23]} 82. Rf8+ {[%emt 0:00:01]} Kg1 {[%emt 0:00:02]} 83. Rg8 {[%emt 0:00:02]} g2 {[%emt 0:00:08]} 84. Rh8 {[%emt 0:00:44]} Re5 {[%emt 0:00:08]} 85. Kd1 {[%emt 0:00:18]} Kf2 {[%emt 0:00:07]} 86. Rf8+ {[%emt 0:00:10]} Kg3 {[%emt 0:00:01]} 87. Rg8+ {[%emt 0:00:07]} Kf3 {[%emt 0:00:14]} 88. Rg7 {[%emt 0:00:13]} Re4 {[%emt 0:00:05]} 0-1

[Event "Gibraltar Challengers B 2019"]
[Site "Caleta"]
[Date "2019.01.29"]
[Round "4"]
[White "Haase, Pavel"]
[Black "Spacapan, Simon"]
[Result "1-0"]
[ECO "A03"]
[WhiteElo "2141"]
[BlackElo "2061"]
[Annotator "NA RC"]
[PlyCount "93"]
[EventDate "2019.01.18"]
[EventType "swiss"]
[EventCountry "GGB"]
[SourceTitle "playchess.com"]
[Source "ChessBase"]
[SourceQuality "1"]
[TimeControl "6600+10"]

1. f4 {[%emt 0:01:21]} d5 {[%emt 0:00:00]} 2. Nf3 {[%emt 0:00:11]} c5 {[%emt 0:00:22]} 3. b3 {[%emt 0:00:49]} Nc6 {[%emt 0:01:10]} 4. Bb2 {[%emt 0:00:11]} Nf6 {[%emt 0:00:39]} 5. e3 {[%emt 0:00:11]} Bg4 {[%emt 0:01:48] A03: Bird's Opening with 1...d5} (5... e6 6. Bb5 Be7 7. Bxc6+ bxc6 8. O-O O-O 9. d3 a5 10. Nbd2 a4 11. Qe2 Ne8 12. Ne5 Qc7 13. Rab1 f6 14. Nef3 Nd6 15. e4 Nf7 16. Kh1 axb3 17. axb3 {0-1 (93) Jobava,B (2627)-Salem,A (2660) St Petersburg 2018}) 6. h3 {[%emt 0:05:19]} Bd7 {[%emt 0:00:05]} 7. g4 $146 {[%emt 0:08:04]} ({Predecessor:} 7. Bb5 Nb4 8. Bxd7+ Nxd7 9. d3 e6 10. O-O Qc7 11. Nbd2 {0-1 (36) Saldana Diaz,J (2057)-Zapata,D (2162) Trujillo 2016}) 7... Ne4 {[%emt 0:07:06]} 8. Rg1 {[%emt 0:06:25]} e6 {[%emt 0:01:48]} 9. d3 {[%emt 0:10:21]} Nd6 {[%emt 0:00:03]} 10. Nbd2 {[%emt 0:02:54]} Qc7 {[%emt 0:00:43]} 11. Ne5 {[%emt 0:06:13]} O-O-O {[%emt 0:04:08]} 12. Bg2 {[%emt 0:03:27]} f6 {[%emt 0:00:24]} 13. Nef3 {[%emt 0:12:29]} Nf7 {[%emt 0:04:55]} 14. a3 {[%emt 0:17:29]} Bd6 {[%emt 0:08:53]} 15. Qe2 $1 {[%emt 0:02:26]} e5 {[%emt 0:00:36]} 16. f5 {[%emt 0:10:52]} Kb8 {[%emt 0:20:11]} 17. O-O-O $1 {[%emt 0:04:41]} d4 {[%emt 0:13:10]} 18. Ne4 {[%emt 0:01:34]} b5 {[%emt 0:01:01]} 19. Nfd2 {[%emt 0:03:51]} Rc8 {[%emt 0:01:03]} 20. Kb1 {[%emt 0:02:52]} dxe3 {[%emt 0:05:38]} 21. Qxe3 {[%emt 0:00:28]} Ne7 {[%emt 0:00:35]} 22. c4 {[%emt 0:02:12]} a6 {[%emt 0:00:21]} 23. Ka2 {[%emt 0:01:18]} Qb6 {[%emt 0:01:37]} 24. Rc1 {[%emt 0:01:58]} Ka7 {[%emt 0:05:21]} (24... Rhd8 $16) 25. b4 {[%emt 0:02:28]} a5 $2 {[%emt 0:17:36]} (25... cxb4 26. c5 Bxc5 27. Nxc5 (27. Rxc5 Nd5 $18) 27... Bc6) 26. Nb3 {[%emt 0:01:42]} axb4 {[%emt 0:01:33]} 27. axb4 {[%emt 0:00:07]} bxc4 {[%emt 0:01:47]} 28. dxc4 {[%emt 0:00:09]} Qxb4 {[%emt 0:01:07]} 29. Ba3 {[%emt 0:00:10]} Qb6 {[%emt 0:03:21]} 30. Nxd6 {[%emt 0:00:10]} Nxd6 {[%emt 0:03:32]} 31. Bxc5 {[%emt 0:00:04]} Rxc5 {[%emt 0:00:02]} 32. Qxc5 {[%emt 0:00:02]} Qxc5 {[%emt 0:01:16]} 33. Nxc5 {[%emt 0:00:02]} Bc6 {[%emt 0:00:20]} 34. Bxc6 {[%emt 0:00:10]} Nxc6 {[%emt 0:00:02]} 35. Rgd1 {[%emt 0:00:06]} Nd4 {[%emt 0:01:36]} 36. Nb3 {[%emt 0:00:32]} Nxb3 {[%emt 0:00:40]} 37. Kxb3 {[%emt 0:00:02]} Rb8+ {[%emt 0:00:09]} 38. Ka4 {[%emt 0:00:09]} Ne4 {[%emt 0:00:14]} 39. Rd7+ {[%emt 0:00:15]} Ka6 {[%emt 0:00:05]} 40. c5 {[%emt 0:00:29]} Rc8 $18 {[%emt 0:00:46]} 41. c6 {[%emt 0:00:12]} Kb6 {[%emt 0:00:09]} 42. Rb7+ {[%emt 0:00:03]} Ka6 {[%emt 0:00:01]} 43. Rxg7 {[%emt 0:00:14]} h6 {[%emt 0:00:19]} 44. Rh7 {[%emt 0:00:25]} Kb6 {[%emt 0:00:01]} 45. Rb7+ {[%emt 0:00:21]} Ka6 {[%emt 0:00:01]} 46. Rb4 {[%emt 0:00:19]} Nf2 {[%emt 0:00:07]} 47. Kb3 {[%emt 0:00:34]} 1-0

[Event "Gibraltar Challengers B 2019"]
[Site "Caleta"]
[Date "2019.01.29"]
[Round "4"]
[White "Ramasindraibe, Girard"]
[Black "Jordan Martinez, Miguel"]
[Result "0-1"]
[ECO "D01"]
[WhiteElo "2129"]
[BlackElo "2142"]
[Annotator "NA"]
[PlyCount "184"]
[EventDate "2019.01.18"]
[EventType "swiss"]
[EventCountry "GGB"]
[SourceTitle "playchess.com"]
[Source "ChessBase"]
[SourceQuality "1"]
[TimeControl "6600+10"]

1. d4 {[%emt 0:00:00]} Nf6 {[%emt 0:00:00]} 2. Nc3 {[%emt 0:00:01]} d5 {[%emt 0:01:08]} 3. Bg5 {[%emt 0:02:38]} e6 {[%emt 0:03:08]} 4. Qd2 {[%emt 0:02:14] D01: Veresov Opening} (4. e4 dxe4 5. Nxe4 Nbd7 6. Nf3 Be7 7. Nxf6+ Bxf6 8. h4 c5 9. Qd2 cxd4 10. O-O-O e5 11. Bd3 O-O 12. Rhe1 Re8 13. Bxf6 Qxf6 14. Qg5 Kf8 15. Qg3 h6 16. Bb5 e4 17. Nxd4 {1-0 (26) Rapport,R (2704)-Spasov,V (2546) Palic 2014}) 4... Be7 {[%emt 0:01:14]} 5. f3 {[%emt 0:00:14]} c5 {[%emt 0:03:16]} 6. e3 {[%emt 0:00:40]} cxd4 {[%emt 0:03:20]} 7. exd4 {[%emt 0:00:02]} Nc6 {[%emt 0:00:57]} 8. O-O-O {[%emt 0:02:40]} a6 $146 {[%emt 0:01:20]} ({Predecessor:} 8... Bb4 9. Kb1 Qa5 10. Nge2 Bd7 11. Qf4 Be7 {1-0 (25) Schuetze,H-Tandrup,M (1995) Horsholm 2008}) 9. Kb1 {[%emt 0:03:24]} b5 {[%emt 0:01:20]} 10. Nge2 {[%emt 0:03:55]} Bd7 {[%emt 0:01:46]} 11. Nc1 {[%emt 0:00:31]} Na5 {[%emt 0:04:34]} 12. Nd3 {[%emt 0:07:47]} Nc4 {[%emt 0:03:13]} 13. Qe1 {[%emt 0:00:02]} Rc8 {[%emt 0:08:32]} 14. Ne5 {[%emt 0:05:27]} h6 {[%emt 0:14:49]} 15. Bc1 {[%emt 0:03:55]} Qc7 {[%emt 0:04:12]} 16. Bxc4 $1 {[%emt 0:03:18]} bxc4 {[%emt 0:04:48]} 17. g4 {[%emt 0:05:41]} Rb8 {[%emt 0:02:27]} 18. Ka1 {[%emt 0:00:02]} Bb4 {[%emt 0:07:06]} 19. Qe3 {[%emt 0:08:07]} Qa5 {[%emt 0:07:30]} 20. Bd2 $1 {[%emt 0:03:36]} Ba4 {[%emt 0:05:07]} 21. Rc1 {[%emt 0:00:02]} Nd7 {[%emt 0:06:38]} 22. g5 {[%emt 0:20:14]} (22. h4 $14) 22... hxg5 {[%emt 0:05:31]} 23. Qxg5 {[%emt 0:00:55]} g6 {[%emt 0:02:58]} 24. Nxd7 {[%emt 0:15:32]} Kxd7 {[%emt 0:00:45]} 25. Qf4 {[%emt 0:01:22]} Rhf8 {[%emt 0:02:04]} 26. Be1 {[%emt 0:05:46]} Bd6 {[%emt 0:04:00]} 27. Qf6 {[%emt 0:01:27]} Qb4 {[%emt 0:02:21]} 28. Nd1 $1 {[%emt 0:03:42]} Qb6 {[%emt 0:01:02]} 29. h4 {[%emt 0:01:40]} a5 {[%emt 0:05:07]} 30. h5 {[%emt 0:00:44]} gxh5 {[%emt 0:00:13]} 31. Rxh5 {[%emt 0:00:29]} Be7 {[%emt 0:01:43]} 32. Qf4 {[%emt 0:00:19]} Qd6 {[%emt 0:00:49]} 33. Qd2 {[%emt 0:01:03]} Bc6 {[%emt 0:00:48]} 34. Rh7 {[%emt 0:00:29]} a4 {[%emt 0:00:10]} 35. Rg7 {[%emt 0:00:47]} a3 {[%emt 0:00:29]} 36. b3 {[%emt 0:00:02]} Bf6 {[%emt 0:00:21]} 37. Rg4 {[%emt 0:00:43]} Rb7 {[%emt 0:00:36]} 38. Qh6 {[%emt 0:00:40]} Qe7 {[%emt 0:00:27]} 39. Bh4 {[%emt 0:00:25]} Bxh4 {[%emt 0:00:20]} 40. Rxh4 {[%emt 0:00:04]} cxb3 {[%emt 0:00:12]} 41. cxb3 {[%emt 0:00:07]} Rb4 {[%emt 0:00:03]} 42. Rh2 {[%emt 0:00:47]} Rxd4 {[%emt 0:00:17]} 43. Rhc2 {[%emt 0:00:04]} Rc8 {[%emt 0:00:01]} 44. Nc3 {[%emt 0:01:04]} Rb4 {[%emt 0:00:13] [#]} 45. Na4 $1 {[%emt 0:00:15]} Rxa4 {[%emt 0:00:14]} 46. bxa4 {[%emt 0:00:07]} Qb4 {[%emt 0:00:15]} 47. Qf6 {[%emt 0:00:37]} Bxa4 {[%emt 0:00:12]} (47... Kd6 $142 48. f4 Qxa4 49. Rxc6+ Qxc6 50. Rxc6+ Rxc6 51. Qd8+ Kc5) 48. Rb1 {[%emt 0:01:32]} Qxb1+ {[%emt 0:00:04]} 49. Kxb1 {[%emt 0:00:01]} Bxc2+ {[%emt 0:00:03]} 50. Ka1 {[%emt 0:00:03] [#]} Bg6 $2 {[%emt 0:00:02]} (50... Bf5 $1 {mates} 51. Qg5 Rb8 52. Qg1 Rb1+ 53. Qxb1 Bxb1 54. Kxb1 e5 55. Kc2 Ke6 56. Kb3 Kf5 57. Kxa3 e4 58. fxe4+ dxe4 59. Kb4 e3 60. Kc3 Kg4 61. Kd3 Kf3 62. Kd4 e2 63. Kc5 e1=Q 64. Kc6 f5 65. Kd7 f4 66. Kd8 Kg4 67. a3 f3 68. Kc7 f2 69. Kd7 f1=Q 70. Kd6 Qa6+ 71. Kd5 Qb5+ 72. Kd6 Qee5#) 51. Qf4 $1 {[%emt 0:00:19]} Rc4 {[%emt 0:00:18]} 52. Qe3 {[%emt 0:00:16]} Rb4 {[%emt 0:00:25]} 53. Qa7+ {[%emt 0:00:20]} Kc6 {[%emt 0:00:11]} 54. Qa6+ {[%emt 0:00:38]} Rb6 {[%emt 0:00:02]} 55. Qc8+ {[%emt 0:01:19]} Kb5 {[%emt 0:00:10]} 56. Qc3 {[%emt 0:00:12]} Ra6 {[%emt 0:00:13]} 57. Qb3+ {[%emt 0:00:18]} Kc6 {[%emt 0:00:02]} 58. Qc3+ {[%emt 0:00:09]} Kd7 {[%emt 0:00:22]} 59. Qb4 {[%emt 0:00:07]} Ra7 {[%emt 0:00:10]} 60. f4 {[%emt 0:00:17]} Be4 {[%emt 0:00:04]} 61. Qb5+ {[%emt 0:00:08]} Kc8 {[%emt 0:00:16]} 62. Qe8+ {[%emt 0:00:03]} Kc7 {[%emt 0:00:06]} 63. Qxf7+ {[%emt 0:00:03]} Kb8 {[%emt 0:00:05]} 64. Qe8+ {[%emt 0:00:02]} Kb7 {[%emt 0:00:05]} 65. Qxe6 {[%emt 0:00:02]} Ra6 {[%emt 0:00:10]} 66. Qd7+ {[%emt 0:00:08]} Kb8 {[%emt 0:00:04]} 67. Qb5+ {[%emt 0:00:06]} Ka7 {[%emt 0:00:03]} 68. Qc5+ {[%emt 0:00:04]} Kb7 {[%emt 0:00:07]} 69. f5 {[%emt 0:00:08]} Rb6 {[%emt 0:00:10]} 70. Qe7+ {[%emt 0:00:08]} Kb8 {[%emt 0:00:02]} 71. Qd8+ {[%emt 0:00:25]} Kb7 {[%emt 0:00:00]} 72. Qd7+ {[%emt 0:00:03]} Kb8 {[%emt 0:00:06]} 73. Qd8+ {[%emt 0:01:15]} Kb7 {[%emt 0:00:01]} 74. Qe7+ {[%emt 0:00:11]} Kc6 {[%emt 0:00:12]} 75. Qf6+ {[%emt 0:00:05]} Kc5 $2 {[%emt 0:00:07]} (75... Kb7 $11) 76. Qc3+ {[%emt 0:00:03] Double Attack} Kd6 {[%emt 0:00:24]} 77. Qxa3+ {[%emt 0:00:05]} Ke5 $2 {[%emt 0:00:06]} (77... Kd7 $18 78. Qa7+ Kc6 79. Qa8+ Kc7) 78. Qe7+ $2 {[%emt 0:00:23]} (78. Qg3+ Kxf5 79. Qf2+ {[%mdl 64] Double Attack} Kg4 80. Qxb6) 78... Kxf5 $18 {[%emt 0:00:23]} 79. Qd7+ {[%emt 0:00:11]} Kg6 {[%emt 0:00:28]} 80. a4 {[%emt 0:00:13]} Ra6 {[%emt 0:00:26]} 81. Qb5 {[%emt 0:00:06]} Ra8 {[%emt 0:00:09]} 82. Kb2 {[%emt 0:00:20]} Kf5 {[%emt 0:00:08]} 83. Kc3 {[%emt 0:00:02]} Ke5 {[%emt 0:00:05]} 84. a5 {[%emt 0:00:10]} Rc8+ {[%emt 0:00:04]} 85. Kd2 {[%emt 0:00:01]} Kf4 {[%emt 0:00:12]} 86. Qf1+ {[%emt 0:00:24]} Ke5 {[%emt 0:00:05]} 87. Qa1+ {[%emt 0:00:12]} d4 {[%emt 0:00:04]} 88. a6 {[%emt 0:00:09]} Rc2+ {[%emt 0:00:24]} 89. Kd1 {[%emt 0:00:01]} Rg2 {[%emt 0:00:06]} 90. Qa5+ {[%emt 0:00:02]} Kf4 {[%emt 0:00:03]} 91. Qh5 {[%emt 0:00:30]} Bf3+ {[%emt 0:00:04]} 92. Kc1 {[%emt 0:00:14]} Bxh5 {[%emt 0:00:02]} 0-1

[Event "Gibraltar Challengers B 2019"]
[Site "Caleta"]
[Date "2019.01.29"]
[Round "4"]
[White "Jordan Martinez, David"]
[Black "Cao Armillas, Jesus"]
[Result "1-0"]
[ECO "B20"]
[WhiteElo "2125"]
[BlackElo "2048"]
[Annotator "NA RC"]
[PlyCount "97"]
[EventDate "2019.01.18"]
[EventType "swiss"]
[EventCountry "GGB"]
[SourceTitle "playchess.com"]
[Source "ChessBase"]
[SourceQuality "1"]
[TimeControl "6600+10"]

1. e4 {[%emt 0:00:00]} c5 {[%emt 0:00:00]} 2. g3 {[%emt 0:00:00]} g6 {[%emt 0:00:36]} 3. Bg2 {[%emt 0:00:04]} Bg7 {[%emt 0:00:04]} 4. Ne2 {[%emt 0:00:22]} Nc6 {[%emt 0:01:28]} 5. c3 {[%emt 0:03:47]} e5 {[%emt 0:00:10]} 6. d3 {[%emt 0:00:14]} Nge7 {[%emt 0:00:24]} 7. Be3 {[%emt 0:00:20]} d6 {[%emt 0:01:33]} 8. a3 {[%emt 0:00:25] B20: Sicilian: Unusual White 2nd moves} O-O {[%emt 0:01:30]} (8... a5 9. Nd2 O-O 10. O-O a4 11. f4 exf4 12. Nxf4 Kh8 13. Nf3 h6 14. d4 cxd4 15. cxd4 b5 {0-1 (42) Svidler,P (2743)-Karjakin,S (2770) Sochi 2014}) 9. b4 {[%emt 0:00:34]} cxb4 $146 {[%emt 0:05:28]} ({Predecessor:} 9... Be6 10. b5 Nb8 11. Nd2 a6 12. a4 axb5 13. axb5 Nd7 14. c4 Nb6 15. O-O Qd7 16. Qc2 Bh3 17. Rfb1 Bxg2 18. Kxg2 f5 19. f3 Rxa1 {½-½ (19) Hort,V (2560)-Muse,M (2445) Germany 1992}) 10. axb4 {[%emt 0:02:06]} d5 {[%emt 0:00:12]} 11. b5 {[%emt 0:04:30]} d4 {[%emt 0:00:38]} 12. Bc1 {[%emt 0:03:54]} Nb8 {[%emt 0:03:45]} 13. cxd4 {[%emt 0:01:38]} exd4 {[%emt 0:00:09]} 14. O-O {[%emt 0:07:15]} Qb6 {[%emt 0:04:42]} 15. Na3 {[%emt 0:04:50]} Bd7 {[%emt 0:04:36]} 16. Rb1 {[%emt 0:00:46]} Be6 {[%emt 0:02:58]} 17. Nf4 {[%emt 0:03:14]} Nd7 {[%emt 0:02:15]} 18. Nxe6 {[%emt 0:00:30]} Qxe6 {[%emt 0:00:46]} 19. Nc4 {[%emt 0:00:41]} Nb6 {[%emt 0:01:07]} 20. Na5 {[%emt 0:12:06]} Rfc8 {[%emt 0:07:52]} 21. Nxb7 {[%emt 0:07:39]} a5 {[%emt 0:06:51]} 22. bxa6 {[%emt 0:11:06]} ({White should try} 22. Bd2 $18) 22... Rxa6 {[%emt 0:00:18]} 23. Bd2 {[%emt 0:04:21]} Na4 {[%emt 0:05:15]} 24. Qb3 {[%emt 0:17:05]} Qxb3 25. Rxb3 {[%emt 0:00:01]} Rc2 {[%emt 0:06:18]} 26. Bf4 {[%emt 0:08:50]} Nc6 {[%emt 0:06:34]} 27. e5 {[%emt 0:14:39]} Nc3 {[%emt 0:04:50]} 28. Bxc6 {[%emt 0:02:12]} Ne2+ {[%emt 0:02:18]} 29. Kg2 {[%emt 0:00:04]} Nxf4+ {[%emt 0:02:28]} 30. gxf4 {[%emt 0:00:01]} Raxc6 {[%emt 0:00:20]} 31. Nd6 {[%emt 0:00:06]} Bf8 {[%emt 0:02:51]} 32. Ne4 {[%emt 0:00:14]} Be7 {[%emt 0:04:05]} 33. Rb7 {[%emt 0:00:09]} Re6 {[%emt 0:03:09]} 34. Ra1 {[%emt 0:00:17]} Rc8 {[%emt 0:02:00]} 35. Raa7 {[%emt 0:00:25]} Re8 {[%emt 0:00:15]} 36. Rd7 {[%emt 0:00:22]} f5 {[%emt 0:02:00]} 37. exf6 {[%emt 0:00:37]} Bxf6 {[%emt 0:00:20]} 38. Nxf6+ {[%emt 0:00:18]} Rxf6 {[%emt 0:00:07]} 39. Rg7+ {[%emt 0:00:08]} Kf8 {[%emt 0:00:54]} 40. Rxh7 {[%emt 0:00:01]} Kg8 {[%emt 0:00:11]} 41. Rag7+ {[%emt 0:00:14]} Kf8 {[%emt 0:00:06]} 42. Rh8+ {[%emt 0:00:06]} Kxg7 {[%emt 0:00:05]} 43. Rxe8 {[%emt 0:00:02]} Rxf4 {[%emt 0:01:18]} 44. Re4 {[%emt 0:00:11]} Rxe4 $2 {[%emt 0:03:04]} (44... Rf8 $16 45. Rxd4 Rc8) 45. dxe4 {[%emt 0:00:01]} g5 {[%emt 0:00:07]} 46. h3 {[%emt 0:00:55]} Kf6 $18 {[%emt 0:00:08]} 47. f3 {[%emt 0:00:13]} Ke5 {[%emt 0:00:04]} 48. Kf2 {[%emt 0:00:09]} Kf4 {[%emt 0:00:06]} 49. Ke2 {[%emt 0:00:06]} 1-0

[Event "Gibraltar Challengers B 2019"]
[Site "Caleta"]
[Date "2019.01.29"]
[Round "4"]
[White "Severijnen, Arjon"]
[Black "Rodriguez Perez, Angel Mariano"]
[Result "1/2-1/2"]
[ECO "B70"]
[WhiteElo "2120"]
[BlackElo "2204"]
[Annotator "RC"]
[PlyCount "64"]
[EventDate "2019.01.18"]
[EventType "swiss"]
[EventCountry "GGB"]
[SourceTitle "playchess.com"]
[Source "ChessBase"]
[SourceQuality "1"]
[TimeControl "6600+10"]

1. e4 {[%emt 0:00:00]} c5 {[%emt 0:00:00]} 2. Nf3 {[%emt 0:00:03]} g6 {[%emt 0:00:00]} 3. d4 {[%emt 0:00:49]} cxd4 {[%emt 0:00:05]} 4. Nxd4 {[%emt 0:00:14]} Nf6 {[%emt 0:00:18]} 5. Nc3 {[%emt 0:00:30]} d6 {[%emt 0:00:11]} 6. g3 {[%emt 0:02:58]} Bg7 {[%emt 0:00:15]} 7. Bg2 {[%emt 0:00:08]} O-O {[%emt 0:00:07]} 8. O-O {[%emt 0:00:26]} Qb6 {[%emt 0:02:29]} 9. Nde2 {[%emt 0:03:21]} Nc6 {[%emt 0:01:10]} 10. h3 {[%emt 0:03:20]} a6 {[%emt 0:07:25]} 11. Nf4 {[%emt 0:10:57]} Be6 {[%emt 0:03:29]} 12. Ncd5 {[%emt 0:22:27]} Bxd5 {[%emt 0:01:20]} 13. Nxd5 {[%emt 0:00:11]} Nxd5 {[%emt 0:00:18]} 14. Qxd5 {[%emt 0:00:57]} Nd4 {[%emt 0:10:18]} 15. Be3 {[%emt 0:22:37]} Qc6 {[%emt 0:03:50]} 16. Qxc6 {[%emt 0:02:01]} bxc6 {[%emt 0:00:08]} 17. Bxd4 {[%emt 0:00:33]} Bxd4 {[%emt 0:00:06]} 18. Rab1 {[%emt 0:02:47]} Rab8 {[%emt 0:00:30]} 19. b3 {[%emt 0:02:20]} c5 {[%emt 0:01:20]} 20. Rfd1 {[%emt 0:00:33]} a5 {[%emt 0:00:56]} 21. Bf1 {[%emt 0:00:43]} f5 {[%emt 0:01:23]} 22. Bc4+ {[%emt 0:01:37]} Kg7 {[%emt 0:00:24]} 23. exf5 {[%emt 0:05:05]} Rxf5 {[%emt 0:00:51]} 24. Rd2 {[%emt 0:00:07]} Rbf8 {[%emt 0:01:29]} 25. Rf1 {[%emt 0:00:08]} d5 {[%emt 0:05:09]} 26. Bb5 {[%emt 0:01:05]} e5 {[%emt 0:00:42]} 27. Bd7 {[%emt 0:02:26]} R5f6 {[%emt 0:00:50]} 28. Kg2 {[%emt 0:03:07]} e4 {[%emt 0:00:29]} 29. Re2 {[%emt 0:00:11]} h5 {[%emt 0:04:17]} 30. h4 {[%emt 0:02:46]} Rf3 {[%emt 0:08:34]} 31. Bc6 {[%emt 0:02:09]} R8f5 {[%emt 0:00:18]} 32. c4 {[%emt 0:05:08]} e3 {[%emt 0:03:28]} 1/2-1/2